{"text_format":"3","workbook":"xlsx","n_sheets":1,"sheets":["Ec Div Infrastructure"],"not_rendered":{"images":1},"read":"whole","date_system":"1900"}

{"sheet":"Ec Div Infrastructure","index":0,"n_rows":43,"n_cols":7,"rows_kept":43,"merged":[[0,0,0,4],[1,0,2,3],[3,2,5,4],[6,0,6,3],[7,0,7,1],[7,3,7,4],[8,0,8,1],[8,3,12,4],[9,0,9,1],[10,0,10,1],[11,0,11,1],[12,0,12,1],[13,0,13,1],[13,3,13,4],[14,0,14,1],[15,0,15,1],[16,0,16,1],[16,3,17,3],[16,4,17,4],[17,0,17,1],[18,0,18,2],[19,0,19,1],[19,3,19,4],[20,0,20,1],[21,0,21,1],[21,3,21,4],[22,0,22,1],[23,0,23,1],[24,0,24,1],[25,0,25,1],[26,0,26,1],[27,0,27,1],[28,0,28,1],[29,0,29,1],[30,0,30,1],[31,0,31,1],[32,0,32,1],[33,0,33,1],[34,0,34,1],[35,0,35,1],[36,0,36,2],[37,2,38,4],[39,0,39,4]]}
["FUNDING QUALIFICATION SCORECARD"]
["ECONOMIC DIVERSIFICATION INFRASTRUCTURE PROGRAM",{"$nulls":3},"Estimated Score "]
[{"$nulls":4},{"$f":"D19+D21+D37","v":{"v":1.2857142857142858,"d":"1"}}]
["Project #:\n(if applicable)"]
["Project Name:"]
["Applicant/Proponent:"]
["Fill in all the light blue boxes to estimate the scorecard assessment.                                                                                                                        Please contact Northern Development staff to discuss your project in further detail.",{"$nulls":3},"A minimum of 50 points\nis required for funding\nqualification."]
["Required Features",null,"Type Yes or No","There are no points assigned for this section"]
["The project is aligned with the objectives of the funding program."]
["The applicant is an eligible organization."]
["The facility can sustainably operate for a minimum of five years."]
["The project is supported by the appropriate local government through a resolution."]
["The applicant has provided evidence confirming all other funding sources."]
["Key Deliverables",null,"Enter Values","A maximum of 125 points are available\nin this section"]
["Total projected # of permanent full-time equivalent (FTE) jobs projected (#)",null,{"v":0,"d":"0.0 jobs"},{"$f":"IF(((C15*5)<=50), ((C15*5)),50)","v":0},"5 per FTE \nmax. 50)"]
["Total projected # of temporary full-time equivalent (FTE) jobs projected (#)",null,{"v":0,"d":"0.0 jobs"},{"$f":"IF(((C16*2)<=25), ((C16*2)),25)","v":0},"2 per FTE\n(max. 25)"]
["Proposed incremental revenue generation over the first five years ($)",null,0,{"$f":"IF((((C18+C17)/20000)<=50), (((C18+C17)/20000)),50)","v":{"v":0,"d":"0.0"}},"1 per $20,000\n(max. 50)"]
["Proposed operational cost savings over the first five years ($)                       *Enter as a positive amount",null,0]
["Section Total",null,null,{"$f":"SUM(D15:D18)","v":0}]
["Leverage",null,"Maximum 70%","A maximum of 10 points are available\nin this section"]
["Investment Leverage \n(The percentage of Northern Development investment of the total project budget)",null,{"v":70,"d":"70.00 %"},{"$f":"IF(((G21*3)<=10),(G21*3),10)","v":{"v":1.2857142857142858,"d":"1.3"}},"3 per $1 from other\nsources (max. 10)",null,{"$f":"(1/(C21/100))-1","v":{"v":0.4285714285714286,"d":"1 : 0.43"}}]
["Strategic Factors",null,"Type Yes or No","A maximum of 70 points are available\nin this section"]
["Is this the first time the applicant has accessed Northern Development funding for this facility?",null,null,{"$f":"IF((C23=\"Yes\"),5,0)","v":0},"5 points"]
["Has the applicant provided quote(s) supporting the entire project budget?",null,null,0,"5 points"]
["Has the applicant provided evidence of broad based support from multiple stakeholders?",null,null,0,"5 points"]
["Has the applicant provided relevant market research/business case for the project?",null,null,0,"5 points"]
["Has the applicant provided a copy of the organization's asset management plan/strategy?",null,null,0,"5 points"]
["Is there direct participation with neighbouring First Nations or Local Governments in the project?",null,null,0,"5 points"]
["Will the project take place in an unincorporated community or municipality with a population under 1,000?",null,null,0,"5 points"]
["Will the project utilize vendor(s) from within the Northern Development region?",null,null,0,"5 points"]
["Will the project be 'shovel ready' upon approval of Northern Development funding?",null,null,0,"5 points"]
["Will the project improve accessibility for people who experience disabilities?",null,null,0,"5 points"]
["Will the project contribute to environmental sustainability?",null,null,{"$f":"IF((C33=\"Yes\"),5,0)","v":0},"5 points"]
["Will the project involve the adoption of technology that improves operational efficiency?",null,null,0,"5 points"]
["Will the project result in a new or enhanced service level within the community?",null,null,0,"5 points"]
["Will the project contribute to resident/workforce attraction or retention in the community?",null,null,0,"5 points"]
["Section Total",null,null,{"$f":"MIN(SUM(D23:D36))","v":0}]
["Date Completed:"]
["Completed By:"]
["Published September 2017 – Ver. 2.0"]
[]
["Yes"]
["No"]